lending/lending_fUSD_20240111
["ID","MTS","AMOUNT","RATE_DAILY","PERIOD"]
[311173181,1704965440642,-629.7443125,0.00036899,4]
[311173182,1704965440655,-508.42224932,0.00036899,4]
[311173183,1704965440664,-500.0,0.00036899,4]
[311173184,1704965440785,-552.44254976,0.00036899,4]
[311173185,1704965440797,-500.0,0.00036899,4]
[311173186,1704965440807,-500.0,0.00036899,4]
[311173187,1704965440816,-500.0,0.00036899,4]
[311173188,1704965440826,-509.37051254,0.00036899,4]
[311173190,1704965440835,-526.81217327,0.00036899,4]
[311173192,1704965440844,-500.0,0.00036899,4]
[311173194,1704965440853,-369.23471792,0.00036899,4]
[311173196,1704965440862,-529.6311674,0.00036899,4]
[311173198,1704965440871,-500.0,0.00036899,4]
[311173200,1704965440880,-500.0,0.00036899,4]
[311173202,1704965440889,-500.0,0.00036899,4]
[311173204,1704965440898,-536.36025279,0.00036899,4]
[311173206,1704965440906,-7500.0,0.000369,2]
[311173208,1704965440915,-250.0,0.000369,2]
[311173210,1704965440924,-5879.96443713,0.000369,9]
[311173212,1704965440933,-184.26161408,0.000369,2]
[311173214,1704965440942,-379.3389127,0.000369,30]
[311173216,1704965440954,-3913.7977246,0.000369,30]
[311173218,1704965440966,-1843.19647404,0.000369,30]
[311173220,1704965440976,-8220.95764042,0.000369,30]
[311173223,1704965440987,-443.79993554,0.000369,30]
[311173225,1704965440998,-251.5575403,0.000369,30]
[311173227,1704965441009,-13277.3917724,0.000369,30]
[311173228,1704965441018,-28330.04,0.000369,2]
[311173229,1704965441027,-67.76252345,0.00036927,2]
[311173230,1704965441080,-1088.23915425,0.00036927,2]
[311173231,1704965441090,-151.40111,0.00036948,6]
[311173232,1704965441099,-154.82,0.00036956,2]
[311173233,1704965441109,-12896.9452045,0.00036975,10]
[311173234,1704965441118,-8597.96346966,0.00036976,10]
[311173235,1704965441127,-500.0,0.00036984,4]
[311173236,1704965441137,-500.0,0.00036984,4]
[311173237,1704965441146,-500.0,0.00036984,4]
[311173238,1704965441155,-500.0,0.00036984,4]
[311173239,1704965441164,-544.94407096,0.00036984,4]
[311173240,1704965441173,-500.0,0.00036984,4]
[311173241,1704965441182,-500.0,0.00036984,4]
[311173242,1704965441191,-633.83315492,0.00036984,4]
[311173243,1704965441200,-500.0,0.00036984,4]
[311173244,1704965441209,-596.92,0.00036984,4]
[311173245,1704965441219,-563.51657165,0.00036984,4]
[311173246,1704965441229,-500.0,0.00036984,4]
[311173247,1704965441239,-500.0,0.00036984,4]
[311173248,1704965441248,-500.0,0.00036984,4]
[311173249,1704965441257,-500.0,0.00036984,4]
[311173250,1704965441266,-823.08,0.00036984,4]
[311173251,1704965441276,-500.0,0.00036984,4]
[311173252,1704965441285,-500.0,0.00036984,4]
[311173253,1704965441295,-672.12,0.00036984,4]
[311173254,1704965441305,-500.0,0.00036984,4]
[311173255,1704965441314,-500.0,0.00036984,4]
[311173256,1704965441323,-500.0,0.00036984,4]
[311173257,1704965441333,-500.0,0.00036984,4]
[311173258,1704965441342,-500.0,0.00036984,4]
[311173259,1704965441351,-724.0,0.00036984,4]
[311173260,1704965441361,-500.0,0.00036984,4]
[311173261,1704965441370,-500.0,0.00036984,4]
[311173262,1704965441379,-500.0,0.00036984,4]
[311173263,1704965441388,-500.0,0.00036984,4]
[311173264,1704965441397,-500.0,0.00036984,4]
[311173265,1704965441406,-500.0,0.00036984,4]
[311173266,1704965441415,-500.0,0.00036984,4]
[311173267,1704965441424,-500.0,0.00036984,4]
[311173268,1704965441433,-500.0,0.00036984,4]
[311173269,1704965441442,-500.0,0.00036984,4]
[311173270,1704965441451,-500.0,0.00036984,4]
[311173271,1704965441460,-500.0,0.00036984,4]
[311173272,1704965441469,-500.0,0.00036984,4]
[311173273,1704965441479,-500.0,0.00036984,4]
[311173274,1704965441489,-525.76,0.00036984,4]
[311173275,1704965441498,-2310.6,0.00036984,4]
[311173276,1704965441507,-500.0,0.00036984,4]
[311173277,1704965441516,-500.0,0.00036984,4]
[311173278,1704965441525,-500.0,0.00036984,4]
[311173279,1704965441534,-500.0,0.00036984,4]
[311173280,1704965441543,-278.84461482,0.00036984,4]
[311173281,1704965441553,-500.0,0.00036984,4]
[311173282,1704965441562,-558.1,0.00036984,4]
[311173283,1704965441572,-500.0,0.00036984,4]
[311173284,1704965441581,-500.0,0.00036984,4]
[311173285,1704965441591,-262.41737119,0.00036984,14]
[311173286,1704965441599,-500.0,0.00036985,4]
[311173287,1704965441609,-500.0,0.00036985,4]
[311173288,1704965441618,-500.0,0.00036985,4]
[311173289,1704965441627,-500.0,0.00036985,4]
[311173290,1704965441636,-500.0,0.00036985,4]
[311173291,1704965441645,-500.0,0.00036985,4]
[311173292,1704965441658,-203.69671806,0.00036985,4]
[311173293,1704965441666,-229.49848735,0.00036985,4]
[311173294,1704965441676,-500.0,0.00036985,4]
[311173295,1704965441685,-510.24199556,0.00036985,4]
[311173296,1704965441694,-407.71745019,0.00036985,4]
[311173297,1704965441702,-500.0,0.00036985,4]
[311173298,1704965441711,-500.0,0.00036985,4]
[311173299,1704965441720,-500.0,0.00036985,4]
[311173300,1704965441729,-502.24594134,0.00036985,4]
[311173301,1704965441738,-500.0,0.00036985,2]
[311173302,1704965441748,-500.0,0.00036985,4]
[311173303,1704965441757,-500.0,0.00036985,4]
[311173304,1704965441765,-500.0,0.00036985,4]
[311173305,1704965441774,-500.0,0.00036985,4]
[311173306,1704965441784,-500.0,0.00036985,4]
[311173307,1704965441793,-500.0,0.00036985,2]
[311173308,1704965441802,-500.0,0.00036985,2]
[311173309,1704965441811,-500.0,0.00036985,4]
[311173310,1704965441820,-500.0,0.00036985,4]
[311173311,1704965441830,-500.0,0.00036985,4]
[311173312,1704965441839,-500.0,0.00036985,7]
[311173313,1704965441850,-500.0,0.00036985,4]
[311173314,1704965441859,-500.0,0.00036985,4]
[311173315,1704965441868,-500.0,0.00036985,4]
[311173316,1704965441877,-500.0,0.00036985,4]
[311173317,1704965441887,-500.0,0.00036985,4]
[311173318,1704965441897,-500.0,0.00036985,4]
[311173319,1704965441906,-500.0,0.00036985,4]
[311173320,1704965441915,-500.0,0.00036985,4]
[311173321,1704965441924,-500.0,0.00036985,4]
[311173322,1704965441933,-500.0,0.00036985,4]
[311173323,1704965441942,-500.0,0.00036985,4]
[311173324,1704965441951,-500.0,0.00036985,4]
[311173325,1704965441960,-500.0,0.00036985,4]
[311173326,1704965441969,-500.0,0.00036985,4]
[311173327,1704965441978,-500.0,0.00036985,4]
[311173328,1704965441987,-500.0,0.00036985,4]
[311173329,1704965441996,-236.22488989,0.00036985,4]
[311173330,1704965442006,-500.0,0.00036985,4]
[311173331,1704965442016,-500.0,0.00036985,4]
[311173332,1704965442026,-500.0,0.00036985,4]
[311173333,1704965442035,-500.0,0.00036985,4]
[311173334,1704965442045,-500.0,0.00036985,4]
[311173335,1704965442055,-416.52649367,0.00036985,4]
[311173336,1704965442064,-500.0,0.00036985,4]
[311173337,1704965442073,-150.0,0.00036985,4]
[311173338,1704965442083,-500.0,0.00036985,4]
[311173339,1704965442094,-500.0,0.00036985,4]
[311173340,1704965442103,-500.0,0.00036985,4]
[311173341,1704965442113,-500.0,0.00036985,4]
[311173342,1704965442122,-500.0,0.00036985,4]
[311173343,1704965442132,-500.0,0.00036985,4]
[311173344,1704965442142,-649.6,0.00036985,4]
[311173345,1704965442151,-500.0,0.00036985,4]
[311173346,1704965442161,-500.0,0.00036985,4]
[311173347,1704965442170,-525.48074989,0.00036985,4]
[311173348,1704965442180,-500.0,0.00036985,4]
[311173349,1704965442189,-500.0,0.00036985,4]
[311173350,1704965442199,-500.0,0.00036985,4]
[311173351,1704965442208,-500.0,0.00036985,4]
[311173352,1704965442217,-507.91448778,0.00036985,4]
[311173353,1704965442226,-517.09866885,0.00036985,4]
[311173354,1704965442235,-500.0,0.00036985,4]
[311173355,1704965442245,-349.27841796,0.00036985,4]
[311173356,1704965442254,-500.0,0.00036985,4]
[311173357,1704965442263,-500.0,0.00036985,4]
[311173358,1704965442273,-320.54535184,0.00036985,4]
[311173359,1704965442283,-500.0,0.00036985,4]
[311173360,1704965442292,-502.91910091,0.00036985,4]
[311173361,1704965442301,-505.65257946,0.00036985,4]
[311173362,1704965442310,-500.0,0.00036985,4]
[311173363,1704965442319,-500.00016041,0.00036985,4]
[311173364,1704965442329,-427.98562922,0.00036985,4]
[311173365,1704965442339,-500.0,0.00036985,4]
[311173366,1704965442348,-500.0,0.00036985,4]
[311173367,1704965442357,-500.0,0.00036985,2]
[311173368,1704965442366,-308.62058269,0.00036985,4]
[311173369,1704965442375,-500.0,0.00036985,4]
[311173370,1704965442385,-500.0,0.00036985,4]
[311173371,1704965442394,-500.0,0.00036985,4]
[311173372,1704965442403,-500.0,0.00036985,4]
[311173373,1704965442413,-500.0,0.00036985,4]
[311173374,1704965442422,-500.0,0.00036985,4]
[311173375,1704965442432,-541.62619013,0.00036985,4]
[311173376,1704965442441,-527.11398249,0.00036985,4]
[311173377,1704965442451,-500.0,0.00036985,4]
[311173378,1704965442460,-500.0,0.00036985,4]
[311173379,1704965442469,-541.02888652,0.00036985,4]
[311173380,1704965442478,-1078.98,0.00036985,4]
[311173381,1704965442487,-542.45750837,0.00036985,4]
[311173382,1704965442496,-500.0,0.00036985,4]
[311173383,1704965442600,-500.0,0.00036985,4]
[311173384,1704965442610,-547.15046798,0.00036985,4]
[311173385,1704965442619,-540.40669478,0.00036985,4]
[311173386,1704965442628,-500.0,0.00036985,4]
[311173387,1704965442638,-500.0,0.00036985,4]
[311173388,1704965442648,-500.0,0.00036985,4]
[311173389,1704965442659,-500.0,0.00036985,4]
[311173390,1704965442668,-500.0,0.00036985,4]
[311173391,1704965442677,-500.0,0.00036985,4]
[311173392,1704965442686,-502.45450636,0.00036985,4]
[311173393,1704965442696,-500.0,0.00036985,4]
[311173394,1704965442705,-501.20295859,0.00036985,4]
[311173395,1704965442714,-500.0,0.00036985,4]
[311173396,1704965442724,-513.84707625,0.00036985,4]
[311173397,1704965442734,-500.0,0.00036985,4]
[311173398,1704965442744,-500.0,0.00036985,4]
[311173399,1704965442753,-562.64529193,0.00036985,4]
[311173400,1704965442763,-500.0,0.00036985,4]
[311173401,1704965442772,-500.0,0.00036985,4]
[311173402,1704965442781,-500.0,0.00036985,4]
[311173403,1704965442791,-500.0,0.00036985,4]
[311173404,1704965442801,-500.0,0.00036985,4]
[311173405,1704965442810,-504.57436453,0.00036985,4]
[311173406,1704965442820,-500.0,0.00036985,4]
[311173407,1704965442829,-500.0,0.00036985,4]
[311173408,1704965442838,-500.0,0.00036985,4]
[311173409,1704965442847,-500.0,0.00036985,4]
[311173410,1704965442857,-500.0,0.00036985,4]
[311173411,1704965442866,-500.0,0.00036985,4]
[311173412,1704965442875,-500.0,0.00036985,4]
[311173413,1704965442884,-500.0,0.00036985,4]
[311173414,1704965442893,-515.24090483,0.00036985,4]
[311173415,1704965442903,-500.0,0.00036985,4]
[311173416,1704965442912,-500.0,0.00036985,4]
[311173417,1704965442922,-502.26885905,0.00036985,2]
[311173418,1704965442931,-500.0,0.00036985,4]
[311173419,1704965442940,-532.16671358,0.00036985,4]
[311173420,1704965442949,-572.78,0.00036985,4]
[311173421,1704965442957,-527.60011056,0.00036985,4]
[311173422,1704965442967,-554.4369965,0.00036985,4]
[311173423,1704965442976,-500.0,0.00036985,4]
[311173424,1704965442985,-500.0,0.00036985,4]
[311173425,1704965442995,-540.24321918,0.00036985,4]
[311173426,1704965443004,-597.25552259,0.00036985,4]
[311173427,1704965443014,-500.0,0.00036985,4]
[311173428,1704965443023,-500.0,0.00036985,4]
[311173429,1704965443033,-500.0,0.00036985,4]
[311173430,1704965443042,-187.52,0.00036985,4]
[311173431,1704965443052,-476.83908857,0.00036985,4]
[311173432,1704965443061,-534.90485911,0.00036985,4]
[311173433,1704965443070,-500.0,0.00036985,4]
[311173434,1704965443080,-536.36198834,0.00036985,4]
[311173435,1704965443089,-244.28784081,0.00036985,4]
[311173436,1704965443098,-500.0,0.00036985,4]
[311173437,1704965443108,-500.0,0.00036985,4]
[311173438,1704965443117,-500.0,0.00036985,4]
[311173439,1704965443127,-557.6,0.00036985,4]
[311173440,1704965443136,-500.0,0.00036985,4]
[311173441,1704965443157,-521.58917899,0.00036985,4]
[311173442,1704965443167,-500.0,0.00036985,4]
[311173443,1704965443177,-500.0,0.00036985,4]
[311173444,1704965443186,-500.0,0.00036985,4]
[311173445,1704965443197,-500.0,0.00036985,4]
[311173446,1704965443207,-511.18648614,0.00036985,4]
[311173447,1704965443216,-505.26487918,0.00036985,4]
[311173448,1704965443226,-500.0,0.00036985,4]
[311173449,1704965443236,-500.0,0.00036985,4]
[311173450,1704965443245,-500.0,0.00036985,4]
[311173451,1704965443255,-500.0,0.00036985,4]
[311173452,1704965443265,-500.0,0.00036985,4]
[311173453,1704965443275,-500.0,0.00036985,4]
[311173454,1704965443285,-518.28621181,0.00036985,4]
[311173455,1704965443296,-512.42970423,0.00036985,4]
[311173456,1704965443306,-723.02,0.00036985,4]
[311173457,1704965443315,-593.37713956,0.00036985,4]
[311173458,1704965443325,-189.62821175,0.00036985,4]
[311173459,1704965443335,-500.0,0.00036985,4]
[311173460,1704965443344,-532.56922219,0.00036985,4]
[311173461,1704965443355,-527.026774,0.00036985,4]
[311173462,1704965443365,-695.83,0.00036985,5]
[311173463,1704965443374,-500.0,0.00036985,4]
[311173464,1704965443383,-532.20745647,0.00036985,4]
[311173465,1704965443393,-500.0,0.00036985,4]
[311173466,1704965443402,-500.0,0.00036985,4]
[311173467,1704965443412,-94.97284151,0.00036985,2]
[311173468,1704965443438,-965.31902448,0.00036985,2]
[311173469,1704965443447,-500.0,0.00036985,4]
[311173470,1704965443457,-500.0,0.00036985,4]
[311173471,1704965443466,-500.0,0.00036985,4]
[311173472,1704965443475,-500.0,0.00036985,4]
[311173473,1704965443485,-500.0,0.00036985,4]
[311173474,1704965443494,-500.0,0.00036985,4]
[311173475,1704965443504,-500.0,0.00036985,4]
[311173476,1704965443514,-500.0,0.00036985,4]
[311173477,1704965443523,-500.0,0.00036985,4]
[311173478,1704965443533,-500.0,0.00036985,4]
[311173479,1704965443543,-500.0,0.00036985,4]
[311173480,1704965443553,-588.0,0.00036985,4]
[311173481,1704965443563,-500.0,0.00036985,4]
[311173482,1704965443572,-500.0,0.00036985,4]
[311173483,1704965443581,-500.0,0.00036985,4]
[311173484,1704965443590,-120.98101714,0.00036985,4]
[311173485,1704965443606,-379.01898286,0.00036985,4]
[311173486,1704965443616,-500.0,0.00036985,4]
[311173487,1704965443625,-500.0,0.00036985,4]
[311173488,1704965443635,-530.78032121,0.00036985,4]
[311173489,1704965443644,-527.46128396,0.00036985,4]
[311173490,1704965443658,-500.0,0.00036985,4]
[311173491,1704965443668,-445.23193349,0.00036985,4]
[311173492,1704965443680,-82.07731151,0.00036985,4]
[311173493,1704965443690,-500.0,0.00036985,4]
[311173494,1704965443700,-628.80165344,0.00036985,4]
[311173495,1704965443709,-500.0,0.00036985,4]
[311173496,1704965443718,-500.0,0.00036985,4]
[311173497,1704965443728,-559.11503857,0.00036985,4]
[311173498,1704965443739,-395.55384772,0.00036985,4]
[311173499,1704965443749,-555.76392163,0.00036985,4]
[311173500,1704965443759,-500.0,0.00036985,4]
[311173501,1704965443768,-500.0,0.00036985,4]
[311173502,1704965443778,-539.22712002,0.00036985,4]
[311173503,1704965443787,-125.78546707,0.00036985,4]
[311173529,1704965444108,-260.63381433,0.00036899,4]
[311173530,1704965444120,-239.36618567,0.00036899,4]
[311173531,1704965444130,-500.0,0.00036899,4]
[311173532,1704965444139,-500.0,0.00036899,4]
[311173533,1704965444150,-422.96029671,0.00036985,4]
[311173534,1704965444160,-515.44225389,0.00036985,4]
[311173535,1704965444170,-694.7,0.00036985,4]
[311173536,1704965444180,-500.0,0.00036985,4]
[311173537,1704965444190,-564.89695993,0.00036985,4]
[311173538,1704965444200,-500.0,0.00036985,4]
[311173539,1704965444211,-500.0,0.00036985,4]
[311173540,1704965444220,-230.89891982,0.00036985,4]
[311173541,1704965444233,-269.10108018,0.00036985,4]
[311173542,1704965444243,-482.51816528,0.00036985,4]
[311173543,1704965444255,-17.48183472,0.00036985,4]
[311173544,1704965444264,-500.0,0.00036985,4]
[311173545,1704965444274,-500.0,0.00036985,4]
[311173546,1704965444283,-109.36816528,0.00036985,4]
[311173547,1704965444295,-390.63183472,0.00036985,4]
[311173548,1704965444306,-500.0,0.00036985,4]
[311173550,1704965444451,-500.0,0.00036985,4]
[311173552,1704965444461,-500.0,0.00036985,4]
[311173554,1704965444470,-556.86526821,0.00036985,4]
[311173556,1704965444479,-91.15761512,0.00036985,4]
[311173559,1704965444496,-408.84238488,0.00036985,4]
[311173560,1704965444506,-500.0,0.00036985,4]
[311173563,1704965444515,-500.0,0.00036985,4]
[311173564,1704965444524,-1000.0,0.00036985,7]
[311173566,1704965444533,-500.0,0.00036985,4]
[311173567,1704965444542,-504.98,0.00036985,4]
[311173569,1704965444552,-500.0,0.00036985,4]
[311173571,1704965444562,-500.0,0.00036985,4]
[311173572,1704965444571,-509.9216786,0.00036985,4]
[311173573,1704965444580,-523.44285975,0.00036985,4]
[311173574,1704965444590,-500.0,0.00036985,4]
[311173575,1704965444599,-500.0,0.00036985,4]
[311173576,1704965444609,-543.6310167,0.00036985,4]
[311173577,1704965444618,-628.29178127,0.00036985,4]
[311173578,1704965444627,-500.0,0.00036985,4]
[311173579,1704965444637,-500.0,0.00036985,4]
[311173580,1704965444646,-532.33356565,0.00036985,4]
[311173581,1704965444657,-500.0,0.00036985,2]
[311173582,1704965444666,-201.09423495,0.00036985,4]
[311173583,1704965444678,-298.90576505,0.00036985,4]
[311173584,1704965444688,-378.55200653,0.00036985,4]
[311173585,1704965444699,-134.20210898,0.00036985,4]
[311173586,1704965444709,-500.0,0.00036985,4]
[311173587,1704965444719,-1432.99391161,0.00036986,10]
[311173588,1704965444728,-500.0,0.00036986,4]
[311173589,1704965444737,-500.0,0.00036986,4]
[311173590,1704965444746,-473.45142009,0.00036986,4]
[311173591,1704965444756,-541.7586985,0.00036986,4]
[311173592,1704965444765,-522.74494059,0.00036986,4]
[311173593,1704965444774,-500.0,0.00036986,4]
[311173594,1704965444783,-518.88949687,0.00036986,4]
[311173595,1704965444793,-520.65301914,0.00036986,4]
[311173596,1704965444803,-248.52885531,0.00036986,4]
[311173597,1704965444813,-337.43130668,0.00036986,4]
[311173598,1704965444822,-500.0,0.00036986,4]
[311173599,1704965444832,-514.59376721,0.00036986,2]
[311173600,1704965444841,-206.49462521,0.00036986,4]
[311173601,1704965444851,-520.04241595,0.00036986,4]
[311173602,1704965444861,-500.0,0.00036986,4]
[311173603,1704965444870,-233.36350805,0.00036986,4]
[311173604,1704965444879,-500.0,0.00036986,4]
[311173605,1704965444889,-500.0,0.00036986,4]
[311173606,1704965444898,-500.0,0.00036986,4]
[311173607,1704965444907,-421.73253182,0.00036986,4]
[311173608,1704965444919,-78.26746818,0.00036986,4]
[311173609,1704965444928,-500.0,0.00036986,4]
[311173610,1704965444938,-500.0,0.00036986,4]
[311173611,1704965444947,-542.75054452,0.00036986,4]
[311173612,1704965444956,-500.0,0.00036986,4]
[311173613,1704965444965,-500.0,0.00036986,4]
[311173614,1704965444975,-537.35604652,0.00036986,4]
[311173615,1704965444984,-500.0,0.00036986,4]
[311173616,1704965445003,-500.0,0.00036986,4]
[311173617,1704965445014,-500.0,0.00036986,4]
[311173618,1704965445023,-642.25,0.00036986,4]
[311173619,1704965445033,-551.06130936,0.00036986,4]
[311173620,1704965445042,-561.44233439,0.00036986,4]
[311173621,1704965445054,-500.0,0.00036986,4]
[311173622,1704965445063,-500.0,0.00036986,4]
[311173623,1704965445072,-500.0,0.00036986,4]
[311173624,1704965445082,-576.93500408,0.00036986,4]
[311173625,1704965445092,-500.0,0.00036986,4]
[311173626,1704965445102,-500.0,0.00036986,4]
[311173627,1704965445111,-187.28420473,0.00036986,4]
[311173628,1704965445121,-267.29220783,0.00036986,4]
[311173629,1704965445131,-361.14683448,0.00036986,4]
[311173630,1704965445141,-525.77381091,0.00036986,4]
[311173631,1704965445151,-500.0,0.00036986,4]
[311173632,1704965445160,-500.0,0.00036986,4]
[311173634,1704965445170,-500.0,0.00036986,4]
[311173636,1704965445180,-500.0,0.00036986,4]
[311173638,1704965445189,-500.0,0.00036986,4]
[311173639,1704965445199,-500.0,0.00036986,4]
[311173640,1704965445208,-500.0,0.00036986,4]
[311173641,1704965445218,-500.0,0.00036986,4]
[311173642,1704965445227,-500.0,0.00036986,4]
[311173643,1704965445252,-544.39485778,0.00036986,4]
[311173644,1704965445271,-500.0,0.00036986,4]
[311173646,1704965445285,-667.71,0.00036986,4]
[311173647,1704965445303,-500.0,0.00036986,4]
[311173648,1704965445318,-1000.0,0.00036986,2]
[311173649,1704965445337,-10054.64711314,0.00036987,10]
[311173650,1704965445355,-1518.96205485,0.00036987,10]
[311173651,1704965445373,-1323.33603651,0.00036987,10]
[311173652,1704965445390,-387.48072314,0.00036995,4]
[311173653,1704965445429,-278.79969255,0.00036996,14]
[311173654,1704965445446,-215.21809469,0.00036996,2]
[311173655,1704965445461,-1998.88314667,0.00036996,4]
[311173656,1704965445640,-289.88,0.00036799,2]
[311173657,1704965445660,-483.942,0.00036799,2]
[311173658,1704965445672,-500.0,0.00036899,4]
[311173659,1704965445684,-1748.21704714,0.00036996,4]
[311173660,1704965445705,-167.94131411,0.00036996,2]
[311173661,1704965445720,-1288.37394118,0.00036997,4]
[311173662,1704965445735,-13707.03512153,0.00036997,2]
[311173663,1704965446090,-4767.39537941,0.00036997,2]
[311173664,1704965446302,-11683.51607631,0.00036997,2]
[311173665,1704965446392,-2117.93525835,0.00036997,2]
[311173666,1704965446402,-35940.97071105,0.00036997,2]
[311173667,1704965446412,-283.86,0.00036997,4]
[311173668,1704965446422,-2701.56205751,0.00036997,4]
[311173669,1704965446431,-188.89459556,0.00036997,4]
[311173670,1704965446442,-196.814422,0.00036997,2]
[311173671,1704965446452,-421.01327273,0.00036997,4]
[311173672,1704965446463,-353.53455155,0.00036997,4]
[311173673,1704965446472,-500.0,0.00036997,4]
[311173674,1704965446482,-500.0,0.00036997,4]
[311173675,1704965446493,-500.0,0.00036997,4]
[311173676,1704965446504,-500.0,0.00036997,4]
[311173677,1704965446515,-500.0,0.00036997,4]
[311173678,1704965446525,-500.0,0.00036997,4]
[311173679,1704965446536,-500.0,0.00036997,4]
[311173680,1704965446547,-500.0,0.00036997,4]
[311173681,1704965446561,-443.54848538,0.00036997,4]
[311173682,1704965446572,-504.59640061,0.00036997,4]
[311173683,1704965446582,-383.98,0.00036997,4]
[311173684,1704965446592,-500.0,0.00036997,4]
[311173685,1704965446602,-500.0,0.00036997,4]
[311173686,1704965446612,-500.0,0.00036997,4]
[311173687,1704965446621,-510.31616285,0.00036997,4]
[311173688,1704965446631,-500.0,0.00036997,4]
[311173689,1704965446642,-516.99218449,0.00036997,4]
[311173690,1704965446656,-151.58409975,0.00036997,4]
[311173691,1704965446667,-500.0,0.00036997,4]
[311173692,1704965446677,-511.19363773,0.00036997,4]
[311173693,1704965446687,-500.0,0.00036997,4]
[311173694,1704965446698,-500.0,0.00036997,4]
[311173695,1704965446707,-511.02313651,0.00036997,4]
[311173696,1704965446718,-500.0,0.00036997,4]
[311173697,1704965446727,-519.52254804,0.00036997,4]
[311173698,1704965446739,-607.4093355,0.00036997,4]
[311173699,1704965446750,-569.46,0.00036997,4]
[311173700,1704965446760,-159.61673425,0.00036997,4]
[311173701,1704965446770,-616.75,0.00036997,4]
[311173702,1704965446780,-556.32777224,0.00036997,4]
[311173703,1704965446791,-524.82715714,0.00036997,4]
[311173704,1704965446801,-500.0,0.00036997,4]
[311173705,1704965446811,-500.0,0.00036997,4]
[311173706,1704965446821,-514.55447307,0.00036997,4]
[311173707,1704965446832,-502.13726787,0.00036997,4]
[311173708,1704965446842,-500.0,0.00036997,4]
[311173709,1704965446853,-255.01200763,0.00036997,4]
[311173710,1704965446862,-503.88266932,0.00036997,4]
[311173711,1704965446873,-515.42368966,0.00036997,4]
[311173712,1704965446883,-520.01556415,0.00036997,4]
[311173713,1704965446894,-500.0,0.00036997,4]
[311173714,1704965446903,-1019.17673284,0.00036997,4]
[311173715,1704965446915,-510.6518327,0.00036997,4]
[311173716,1704965446924,-625.60365163,0.00036997,4]
[311173717,1704965446934,-529.52799198,0.00036997,4]
[311173718,1704965446944,-270.29325042,0.00036997,4]
[311173719,1704965446955,-353.23327406,0.00036997,4]
[311173720,1704965446965,-417.76534507,0.00036997,4]
[311173721,1704965446974,-500.0,0.00036997,4]
[311173722,1704965446983,-504.8473995,0.00036997,4]
[311173723,1704965446993,-579.55008778,0.00036997,4]
[311173724,1704965447002,-500.00573711,0.00036997,4]
[311173725,1704965447011,-500.0,0.00036997,4]
[311173726,1704965447021,-500.0,0.00036997,4]
[311173727,1704965447030,-510.49315058,0.00036997,4]
[311173728,1704965447040,-500.1246978,0.00036997,4]
[311173729,1704965447051,-500.0,0.00036997,4]
[311173730,1704965447061,-614.71114145,0.00036997,4]
[311173731,1704965447070,-512.0551158,0.00036997,4]
[311173732,1704965447080,-314.68200408,0.00036997,4]
[311173733,1704965447090,-639.85686267,0.00036997,4]
[311173734,1704965447099,-500.0,0.00036997,4]
[311173735,1704965447109,-521.15714909,0.00036997,4]
[311173736,1704965447119,-550.43296958,0.00036997,4]
[311173737,1704965447129,-511.60222522,0.00036997,4]
[311173738,1704965447138,-520.81981082,0.00036997,4]
[311173739,1704965447148,-500.0,0.00036997,4]
[311173740,1704965447157,-504.9122826,0.00036997,4]